bitfinex/quotes_ETHUSD_20241003
["timestamp","ask_amount","ask_price","bid_price","bid_amount"]
[1727914667480,0.7954,2373.2,2372.8,4.21442]
[1727914668294,4.21408,2373.0,2372.3,4.21518]
[1727914668512,4.21471,2372.7,2372.2,4.2154]
[1727914669227,4.21471,2372.7,2372.3,4.2153]
[1727914669228,0.7814,2372.7,2372.3,4.2153]
[1727914669412,0.7814,2372.7,2372.4,4.21504]
[1727914669617,0.7814,2372.7,2372.3,4.21521]
[1727914670406,0.7814,2372.7,2372.3,4.21529]
[1727914670595,0.7814,2372.7,2372.4,4.21501]
[1727914670996,0.7814,2372.7,2372.3,4.21529]
[1727914671299,0.7814,2372.7,2372.3,8.43051]
[1727914671605,0.7814,2372.7,2372.3,4.21522]
[1727914671937,5.0693,2373.0,2372.3,5.140476]
[1727914672106,3.0,2372.9,2372.5,4.21494]
[1727914672435,3.0,2372.9,2372.1,5.03733]
[1727914672436,4.83201194,2372.9,2372.1,5.03733]
[1727914672604,4.21456,2372.8,2372.2,4.21549]
[1727914672814,4.21435,2372.9,2372.4,4.21499]
[1727914673018,0.8552,2373.0,2372.6,4.21476]
[1727914673429,0.44123952,2373.1,2372.4,0.421499]
[1727914673734,4.65512952,2373.1,2372.6,4.21477]
[1727914673936,4.65512952,2373.1,2372.6,5.0998789]
[1727914675103,0.44123952,2373.1,2372.7,4.21452]
[1727914676245,0.44123952,2373.1,2372.5,4.21483]
[1727914676400,0.44123952,2373.1,2372.2,4.21548]
[1727914676401,4.21469,2372.7,2372.2,4.21548]
[1727914677590,4.21487,2372.6,2372.1,4.21555]
[1727914677833,4.21515,2372.4,2372.0,4.21583]
[1727914678639,0.855,2372.5,2372.0,4.21583]
[1727914678939,5.06997,2372.5,2372.0,4.21583]
[1727914679252,5.06997,2372.5,2371.9,4.21591]
[1727914679392,0.855,2372.5,2372.2,4.21538]
[1727914679908,0.855,2372.5,2372.1,4.21565]
[1727914680103,0.855,2372.5,2372.2,4.21547]
[1727914680516,0.855,2372.5,2372.1,4.21557]
[1727914680726,7.636079,2372.7,2372.2,4.21535]
[1727914681090,4.21482,2372.6,2372.1,8.43114]
[1727914681291,7.636079,2372.7,2372.2,4.21545]
[1727914681493,4.21483,2372.6,2372.1,4.21557]
[1727914681726,3.0,2372.7,2372.3,4.21516]
[1727914681915,8.00047,2372.8,2372.3,8.43035]
[1727914682124,8.00047,2372.8,2372.1,8.43106]
[1727914682125,4.21468,2372.7,2372.1,8.43106]
[1727914682324,4.21488,2372.6,2371.9,4.2159]
[1727914682530,7.21504,2372.5,2372.0,4.21584]
[1727914682726,4.21559,2372.2,2371.7,4.21628]
[1727914682957,4.21577,2372.1,2371.6,4.21655]
[1727914683168,0.7967,2371.8,2371.4,4.3341344]
[1727914683328,4.2164,2371.7,2371.4,0.1173144]
[1727914683502,4.21674,2371.5,2371.4,0.1173144]
[1727914684109,7.21674,2371.5,2371.4,0.1173144]
[1727914684446,12.94336607,2371.5,2371.4,0.1173144]
[1727914685602,13.63211796,2371.5,2371.4,0.1173144]
[1727914688860,3.8012,2371.5,2371.4,0.1173144]
[1727914689233,0.8012,2371.5,2371.4,0.1173144]
[1727914689528,5.01794,2371.5,2371.4,0.1173144]
[1727914689848,8.941393,2371.5,2371.4,0.1173144]
[1727914690160,3.8012,2371.5,2371.4,0.1173144]
[1727914690315,8.01794,2371.5,2371.4,0.1173144]
[1727914690855,3.8012,2371.5,2371.4,0.1173144]
[1727914691019,8.01794,2371.5,2371.4,0.1173144]
[1727914693852,3.8012,2371.5,2371.4,0.1173144]
[1727914694053,8.01794,2371.5,2371.4,0.1173144]
[1727914695973,3.8012,2371.5,2371.4,0.1173144]
[1727914696263,3.0,2371.5,2371.4,0.1173144]
[1727914696627,7.21674,2371.5,2371.4,0.1173144]
[1727914696833,8.360073,2371.5,2371.4,0.1173144]
[1727914697036,7.21674,2371.5,2371.4,0.1173144]
[1727914697771,4.21659,2371.6,2371.4,0.1173144]
[1727914698820,4.21674,2371.5,2371.4,0.1173144]
[1727914700551,7.21674,2371.5,2371.4,0.1173144]
[1727914701063,8.07014,2371.5,2371.4,0.1173144]
[1727914701239,9.8602308,2371.5,2371.4,0.1173144]
[1727914701434,27.9614388,2371.5,2371.4,0.1173144]
[1727914701765,24.78125402,2371.5,2371.4,0.1173144]
[1727914702264,22.24825402,2371.5,2371.4,0.1173144]
[1727914702618,21.69825402,2371.5,2371.4,0.1173144]
[1727914702984,9.93373202,2371.5,2371.4,0.1173144]
[1727914703482,9.8602308,2371.5,2371.4,0.1173144]
[1727914703684,6.8602308,2371.5,2371.4,0.1173144]
[1727914704881,9.8602308,2371.5,2371.4,0.1173144]
[1727914707686,23.64586771,2371.5,2371.4,0.1173144]
[1727914707888,23.64586771,2371.5,2369.7,1.30113723]
[1727914707889,4.21854,2370.5,2370.1,0.7874]
[1727914708179,4.93252191,2370.6,2370.1,0.7874]
[1727914708180,4.21879,2370.4,2370.1,0.7874]
[1727914708335,7.21844,2370.6,2370.1,5.00652]
[1727914708541,4.2187,2370.4,2370.1,0.7874]
[1727914708758,7.21844,2370.6,2370.1,0.7874]
[1727914708759,4.21852,2370.5,2370.1,0.7874]
[1727914708937,4.21818,2370.7,2370.2,4.2189]
[1727914709164,5.00422,2370.8,2370.1,1.709994]
[1727914709165,0.7861,2370.8,2370.1,1.709994]
[1727914709371,4.21878,2370.4,2370.1,0.7874]
[1727914709683,4.21878,2370.4,2369.9,4.21956]
[1727914710518,4.21878,2370.4,2369.5,4.22028]
[1727914710519,4.21958,2369.9,2369.5,4.22028]
[1727914710642,4.21977,2369.8,2369.3,5.08179]
[1727914711156,9.15204191,2370.0,2369.4,4.22045]
[1727914711355,8.43904,2370.0,2369.5,4.22014]
[1727914711558,8.43904,2370.0,2369.4,4.22045]
[1727914711559,4.21977,2369.8,2369.4,4.22045]
[1727914711756,5.363424,2370.0,2369.5,4.22027]
[1727914712182,9.582984,2370.0,2369.5,4.22027]
[1727914712483,4.21966,2369.9,2369.4,4.22045]
[1727914712647,4.21977,2369.8,2369.4,4.22045]
[1727914712977,4.2196,2369.9,2369.4,4.22045]
[1727914713359,4.2196,2369.9,2369.3,0.8613]
[1727914713360,4.21994,2369.7,2369.3,0.8613]
[1727914713689,0.9583024,2369.9,2369.5,4.22021]
[1727914713977,4.21953,2370.0,2369.5,4.22021]
[1727914714137,0.44179095,2369.9,2369.5,4.22021]
[1727914714338,4.66138095,2369.9,2369.4,4.2203]
[1727914714543,0.44179095,2369.9,2369.5,4.22029]
[1727914715543,4.21979,2369.8,2369.4,4.2203]
[1727914715739,4.21979,2369.8,2369.3,0.8613]
[1727914715951,0.44179095,2369.9,2369.6,4.2201]
[1727914716591,0.44179095,2369.9,2369.7,4.21985]
[1727914716987,0.44179095,2369.9,2369.6,4.22004]
[1727914717286,0.44179095,2369.9,2369.3,1.369504]
[1727914717287,4.21989,2369.8,2369.3,5.590144]
[1727914717490,7.22005,2369.7,2369.3,0.8613]
[1727914718330,5.01499,2369.8,2369.3,5.08185]
[1727914718539,9.23492,2369.8,2369.3,5.08185]
[1727914718686,0.44179095,2369.9,2369.4,4.22044]
[1727914718687,3.44179095,2369.9,2369.4,4.22044]
[1727914718897,0.44179095,2369.9,2369.8,4.21976]
[1727914719133,0.44179095,2369.9,2369.8,5.01336]
[1727914719306,0.44179095,2369.9,2369.8,6.02107141]
[1727914719493,4.99785,2371.1,2369.9,0.8078]
[1727914719799,7.00327577,2371.4,2370.6,0.8078]
[1727914719800,4.21731,2371.2,2370.6,0.8078]
[1727914720004,3.56654577,2371.4,2370.6,0.8078]
[1727914720005,0.7803,2371.4,2370.6,0.8078]
[1727914720239,4.21675,2371.5,2371.0,4.21754]
[1727914720590,0.7803,2371.7,2371.2,0.8102]
[1727914720890,4.93252191,2372.1,2371.6,4.21655]
[1727914720891,4.21572,2372.1,2371.6,4.21655]
[1727914721086,5.058857,2372.1,2371.6,4.21655]
[1727914721289,4.21572,2372.1,2371.6,4.21655]
[1727914721690,4.21587,2372.0,2371.5,4.21673]
[1727914722125,4.21565,2372.2,2371.6,4.21647]
[1727914722431,4.21564,2372.2,2371.6,8.43293]
[1727914722731,5.63035919,2372.2,2371.5,4.21669]
[1727914722890,4.21605,2371.9,2371.4,4.21681]
[1727914723089,4.2163,2371.8,2371.2,5.02734]
[1727914723286,4.2163,2371.8,2371.3,4.719824]
[1727914723485,8.43259,2371.8,2371.3,4.719824]
[1727914723686,4.21629,2371.8,2371.3,4.719824]
[1727914724132,4.21597,2372.0,2371.3,4.719824]
[1727914724445,3.0,2372.2,2371.8,4.21618]
[1727914724590,7.99907,2372.4,2371.9,4.21598]
[1727914724591,4.21527,2372.4,2371.9,4.21598]
[1727914724792,4.21553,2372.2,2371.7,0.8563]
[1727914725041,4.21582,2372.1,2371.5,4.21667]
[1727914725195,4.21603,2371.9,2371.5,0.8563]
[1727914725836,5.72992191,2372.1,2371.2,5.04685]
[1727914725990,4.21641,2371.7,2371.2,5.04685]
[1727914726194,4.21641,2371.7,2371.2,0.8297]
[1727914726195,4.21657,2371.6,2371.2,0.8297]
[1727914726528,4.21641,2371.7,2371.2,5.04695]
[1727914726740,4.21641,2371.7,2371.2,9.26412]
[1727914726907,4.21641,2371.7,2371.2,0.8297]
[1727914726908,4.21659,2371.6,2371.2,0.8297]
[1727914727090,0.843256,2371.7,2371.2,0.8297]
[1727914727291,0.57299219,2372.0,2371.2,0.8297]
[1727914727292,0.57299219,2372.0,2371.2,5.04683]
[1727914727493,4.21657,2371.6,2371.2,0.8297]
[1727914727928,4.21674,2371.5,2371.0,4.21749]
[1727914728145,4.21674,2371.5,2371.0,8.43501]
[1727914728318,4.21661,2371.6,2371.1,4.21735]
[1727914728520,4.21661,2371.6,2370.9,5.02171]
[1727914728521,4.21677,2371.5,2370.9,5.02171]
[1727914728728,0.51316742,2371.4,2370.9,0.804]
[1727914728895,4.21615,2371.9,2371.2,4.21727]
[1727914729458,4.21649,2371.7,2371.2,4.2171]
[1727914729609,0.421649,2371.6,2371.2,4.2171]
[1727914729808,4.21631,2371.8,2371.2,4.2171]
[1727914730112,4.21659,2371.6,2371.1,4.21744]
[1727914730949,4.21704,2371.4,2370.9,0.804]
[1727914731110,4.2173,2371.2,2370.9,0.804]
[1727914732014,4.21704,2371.4,2370.9,0.804]
[1727914732322,4.21704,2371.4,2370.9,5.0217]
[1727914732912,3.0,2371.5,2371.0,4.21747]
[1727914733203,3.0,2371.5,2371.1,4.21744]
[1727914733360,3.0,2371.6,2371.0,4.21747]
[1727914733520,4.638094,2371.7,2371.2,4.21725]
[1727914733721,8.854564,2371.7,2371.2,4.21725]
[1727914734044,8.854564,2371.7,2371.0,4.21747]
[1727914734045,5.1021264,2371.6,2371.0,4.21747]
[1727914734220,0.8854564,2371.6,2370.9,0.804]
[1727914734416,4.21701,2371.4,2370.9,0.804]
[1727914734636,8.94426664,2371.4,2370.9,0.804]
[1727914734833,4.72725664,2371.4,2370.9,0.804]
[1727914735034,4.72725664,2371.4,2370.6,0.8572]
[1727914735035,4.2179,2370.9,2370.6,0.8572]
[1727914735258,4.2179,2370.9,2369.8,13.67113723]
[1727914735259,4.21816,2370.7,2370.3,0.8572]
[1727914735418,0.42179,2370.8,2370.3,0.8572]
[1727914735621,0.42179,2370.8,2370.4,4.21869]
[1727914736716,0.42179,2370.8,2370.3,0.8572]
[1727914736982,4.21843,2370.6,2370.3,0.8572]
[1727914737148,4.21818,2370.7,2370.0,0.8297]
[1727914737352,4.21813,2370.8,2370.2,4.21893]
[1727914737545,5.137978,2370.8,2370.2,4.21893]
[1727914738134,4.21817,2370.7,2370.2,4.21893]
[1727914738552,8.43644,2370.7,2370.1,4.21922]
[1727914739371,0.919848,2370.8,2370.0,0.8297]
[1727914739372,4.2188,2370.4,2370.0,0.8297]
[1727914739535,4.21935,2370.1,2369.7,0.806]
[1727914739747,5.01675,2370.5,2369.1,1.30113723]
[1727914739748,4.21991,2369.8,2369.4,0.806]
[1727914740802,4.22013,2369.6,2369.2,0.7582]
[1727914741084,0.7645,2369.9,2369.2,0.7582]
[1727914741085,4.22039,2369.5,2369.2,0.7582]
[1727914741298,4.22083,2369.2,2369.0,0.1173144]
[1727914741454,4.22101,2369.1,2369.0,0.1173144]
[1727914741663,3.0,2369.5,2369.0,0.1173144]
[1727914741854,4.22056,2369.4,2369.0,0.1173144]
[1727914742042,4.642616,2369.4,2369.0,0.1173144]
[1727914742437,4.22083,2369.2,2369.0,0.1173144]
[1727914742876,8.4418,2369.2,2369.0,0.1173144]
[1727914743487,4.22083,2369.2,2369.0,0.1173144]
[1727914743787,4.22101,2369.1,2369.0,0.1173144]
[1727914743944,8.863394,2369.1,2369.0,0.1173144]
[1727914747080,1.27051029,2369.4,2369.0,0.1173144]
[1727914747250,0.49561029,2369.4,2369.0,0.1173144]
[1727914747451,4.2203,2369.5,2369.0,4.3384544]
[1727914747850,0.7749,2369.7,2369.2,4.22083]
[1727914748234,4.22023,2369.6,2369.0,4.3383844]
[1727914748390,4.22034,2369.5,2369.0,4.3383844]
[1727914748692,4.22057,2369.4,2369.0,0.1173144]
[1727914748877,4.22082,2369.3,2369.0,0.1173144]
[1727914749450,8.44115,2369.4,2369.0,0.1173144]
[1727914749853,4.22057,2369.4,2369.0,0.1173144]
[1727914750091,4.22069,2369.3,2369.0,0.1173144]
[1727914750420,4.22085,2369.2,2369.0,0.1173144]
[1727914751044,7.22101,2369.1,2369.0,0.1173144]
[1727914751663,7.77101,2369.1,2369.0,0.1173144]
[1727914751896,9.61074413,2369.1,2369.0,0.1173144]
[1727914752114,10.40854413,2369.1,2369.0,0.1173144]
[1727914752319,25.42675213,2369.1,2369.0,0.1173144]
[1727914752522,4.22332,2367.9,2367.4,4.22386]
[1727914752705,0.422332,2367.8,2367.3,4.22407]
[1727914752879,3.0,2368.0,2367.6,4.22357]
[1727914753279,9.2315,2368.1,2367.6,4.22357]
[1727914753499,4.22306,2368.0,2367.5,4.17386]
[1727914753704,5.14603,2368.1,2367.4,4.22393]
[1727914754083,4.223,2368.0,2367.5,4.22382]
[1727914754416,4.223,2368.0,2367.4,4.22393]
[1727914754615,5.159903,2368.0,2367.4,4.22393]
[1727914754783,0.936903,2368.0,2367.2,5.02983]
[1727914754969,4.22297,2368.0,2367.5,4.2238]
[1727914755178,3.0,2368.0,2367.6,4.22359]
[1727914755513,4.22213,2368.5,2367.6,4.22359]
[1727914755514,4.22193,2368.6,2368.1,4.22262]
[1727914756015,4.22282,2368.1,2367.7,0.7869]
[1727914756199,4.22282,2368.1,2367.4,0.7869]
[1727914756200,4.22316,2367.9,2367.4,0.7869]
[1727914756519,5.04391,2368.1,2367.4,0.7869]
[1727914756520,0.422282,2368.0,2367.4,0.7869]
[1727914756815,4.22315,2367.9,2367.4,5.01085]
[1727914757308,4.645262,2368.0,2367.5,4.22385]
[1727914757485,0.9689342,2367.9,2367.3,4.22404]
[1727914757684,5.1921642,2367.9,2367.4,4.22402]
[1727914757897,5.1921642,2367.9,2367.3,4.22404]
[1727914758112,4.22335,2367.8,2367.3,4.22404]
[1727914758474,4.22396,2367.5,2367.1,0.8195]
[1727914758807,8.44792,2367.5,2367.0,4.22466]
[1727914759314,4.22396,2367.5,2367.0,4.22466]
[1727914759619,4.22449,2367.2,2366.8,0.795]
[1727914759818,4.22405,2367.4,2366.9,4.22491]
[1727914759968,4.99938,2367.5,2366.8,4.22497]
[1727914760173,4.22422,2367.3,2366.8,8.44997]
[1727914760613,4.22422,2367.3,2366.8,4.22497]
[1727914761125,4.22422,2367.3,2366.7,4.3425944]
[1727914761126,4.2244,2367.2,2366.7,4.3425944]
[1727914761280,4.22476,2367.0,2366.7,0.1173144]
[1727914761617,4.99626,2367.0,2366.7,0.1173144]
[1727914761825,3.0,2367.1,2366.7,4.3425044]
[1727914762023,4.22385,2367.6,2366.9,5.03091]
[1727914762314,4.22385,2367.6,2367.1,4.22445]
[1727914762315,4.22377,2367.6,2367.1,4.22445]
[1727914763368,8.44757,2367.6,2367.1,4.22445]
[1727914763569,4.22377,2367.6,2367.1,4.22445]
[1727914765678,4.22377,2367.6,2366.9,5.03083]
[1727914765874,4.22377,2367.6,2367.0,4.22463]
[1727914766577,8.44758,2367.6,2367.0,4.22463]
[1727914766777,4.22377,2367.6,2367.1,4.22452]
[1727914767091,0.7715,2367.7,2367.2,4.2243]
[1727914767319,4.22369,2367.6,2367.2,4.2243]
[1727914767609,3.72369,2367.6,2367.2,4.2243]
[1727914767810,3.72369,2367.6,2367.0,4.22459]
[1727914768017,3.72369,2367.6,2367.1,4.22448]
[1727914769188,1.23893787,2368.0,2367.6,4.22368]
[1727914769516,1.23893787,2368.0,2367.1,0.97289497]
[1727914769517,0.44163787,2368.0,2367.5,0.89859632]
[1727914769726,0.7973,2368.3,2367.6,4.22359]
[1727914769727,4.22287,2368.1,2367.6,4.22359]
[1727914770212,4.22306,2368.0,2367.5,0.8304]
[1727914770518,4.22306,2368.0,2367.5,5.05418]
[1727914770725,4.22306,2368.0,2367.6,4.22353]
[1727914770726,3.0,2368.0,2367.6,4.22353]
[1727914770874,5.01985,2368.3,2367.5,0.8304]
[1727914770875,3.7973,2368.3,2367.8,4.22329]
[1727914771074,0.7973,2368.3,2367.8,4.645619]
[1727914771278,4.22262,2368.2,2367.8,4.22329]
[1727914772217,8.01975,2368.3,2367.8,8.44652]
[1727914772383,4.22263,2368.2,2367.7,4.22339]
[1727914772580,4.22317,2367.9,2367.4,4.22391]
[1727914772780,0.7913,2367.8,2367.3,4.22421]
[1727914772986,4.22373,2367.6,2367.2,0.7575]
[1727914773213,4.22373,2367.6,2367.0,5.00182]
[1727914773411,4.22403,2367.5,2367.0,5.00182]
[1727914773612,4.22412,2367.4,2367.0,0.7772]
[1727914773811,4.22436,2367.3,2366.8,4.22505]
[1727914774123,4.2244,2367.2,2366.8,4.22505]
[1727914774421,4.2244,2367.2,2366.7,5.1198044]
[1727914774924,0.8227,2367.3,2366.7,0.1173144]
[1727914774925,3.0,2367.1,2366.7,0.1173144]
[1727914775223,4.22503,2366.9,2366.7,0.1173144]
[1727914775523,3.0,2366.8,2366.7,0.1173144]
[1727914775727,3.0,2367.0,2366.7,0.1173144]
[1727914775894,5.04705,2367.3,2366.7,0.1173144]
[1727914776083,3.0,2367.4,2366.9,4.22481]
[1727914776311,3.0,2367.4,2367.0,4.22475]
[1727914776494,4.22398,2367.5,2367.0,4.22475]
[1727914776697,4.22398,2367.5,2366.9,4.65914244]
[1727914776911,4.2236,2367.7,2366.8,4.98766]
[1727914777111,4.2236,2367.7,2367.2,4.22429]
[1727914777310,4.22372,2367.6,2367.2,4.22429]
[1727914777924,4.22372,2367.6,2367.1,4.22456]
[1727914778296,3.8283,2367.9,2366.9,0.51049744]
[1727914778498,4.22448,2367.2,2366.7,4.3425944]
[1727914778699,8.04636,2367.4,2366.8,4.22503]
[1727914778903,8.04636,2367.4,2366.9,4.22484]
[1727914779120,8.04636,2367.4,2366.8,4.22503]
[1727914779433,0.8223,2367.4,2366.8,4.22503]
[1727914779594,5.04634,2367.4,2366.9,4.22481]
[1727914779793,5.04634,2367.4,2366.9,5.08153744]
[1727914780127,4.22404,2367.4,2366.9,9.30633744]
[1727914780331,4.22388,2367.5,2366.9,5.08152744]
[1727914780630,4.22388,2367.5,2367.1,4.22456]
[1727914780938,4.2238,2367.6,2367.2,4.22436]
[1727914781143,3.0,2367.7,2367.2,5.19939327]
[1727914781284,4.22378,2367.6,2367.1,4.22457]
[1727914781631,4.22378,2367.6,2367.0,1.30155274]
[1727914781632,4.22405,2367.4,2367.0,0.7934]
[1727914781790,4.22387,2367.5,2367.0,5.01806]
[1727914783437,4.22387,2367.5,2367.0,5.942345]
[1727914784045,3.0,2367.4,2366.7,5.1217744]
[1727914784199,4.22418,2367.4,2367.0,4.22473]
[1727914785888,4.22417,2367.4,2366.9,4.22476]
[1727914786090,4.22381,2367.6,2366.9,4.22476]
[1727914786291,4.22395,2367.5,2367.0,4.22464]
[1727914786487,4.22413,2367.4,2366.9,4.22476]
[1727914786733,4.22432,2367.3,2366.8,4.22508]
[1727914787030,4.22432,2367.3,2366.9,4.2249]
[1727914788541,8.38817235,2367.7,2366.7,0.8966144]
[1727914788744,0.7585,2367.6,2366.7,0.8966144]
[1727914788942,4.22441,2367.2,2366.7,0.8966144]
[1727914789142,4.22457,2367.1,2366.7,0.8966144]
[1727914789447,4.22511,2366.8,2366.7,0.1173144]
[1727914790008,4.22496,2366.9,2366.7,0.1173144]
[1727914790352,8.44998,2366.9,2366.7,0.1173144]
[1727914790750,4.22496,2366.9,2366.7,0.1173144]
[1727914790929,9.98448705,2366.8,2366.7,0.1173144]
[1727914791123,9.98448705,2366.8,2365.8,2.20506656]
[1727914791124,4.22689,2365.8,2365.4,0.7837]
[1727914791450,4.22689,2365.8,2365.1,5.96283965]
[1727914791451,4.22734,2365.6,2365.1,0.7837]
[1727914791650,4.22734,2365.6,2364.6,5.10989112]
[1727914791651,4.22827,2365.1,2364.6,5.10989112]
[1727914791854,5.06073,2365.5,2364.9,5.04479]
[1727914792056,4.22753,2365.5,2365.0,0.93455488]
[1727914792357,4.22832,2365.0,2364.6,0.7912]
[1727914792557,4.22832,2365.0,2364.7,0.12153188]
[1727914792706,4.22809,2365.2,2364.7,4.22886]
[1727914792906,8.45615,2365.2,2364.6,5.02009]
[1727914793161,8.45615,2365.2,2364.6,5.945026]
[1727914793520,4.22815,2365.1,2364.6,5.02009]
[1727914794762,4.22806,2365.2,2364.6,5.02009]
[1727914794917,4.22806,2365.2,2364.6,9.24903]
[1727914795117,0.7648,2365.3,2364.7,4.22882]
[1727914795358,8.9866077,2365.3,2364.6,9.24903]
[1727914795568,8.9866077,2365.3,2364.7,4.22884]
[1727914795719,4.7586777,2365.3,2364.8,4.22858]
[1727914795921,9.23881,2365.6,2365.0,4.2283]
[1727914796151,3.0,2365.5,2365.0,4.2283]
[1727914796523,3.0,2365.3,2364.6,0.7912]
[1727914796725,4.22832,2365.1,2364.6,0.7912]
[1727914797061,4.22832,2365.1,2364.6,5.02024]
[1727914797567,7.2278,2365.3,2364.7,4.22872]
[1727914797729,7.2278,2365.3,2364.6,5.02006]
[1727914797924,7.2278,2365.3,2364.8,4.22859]
[1727914799135,4.728674,2365.5,2364.8,4.22859]
[1727914799136,4.22753,2365.5,2364.9,5.01558]
[1727914799335,4.94627705,2365.7,2364.9,0.7872]
[1727914799661,4.22783,2365.3,2364.6,5.01609]
[1727914800036,4.22797,2365.2,2364.7,4.22876]
[1727914800547,4.22783,2365.3,2364.7,4.22885]
[1727914800746,4.2281,2365.2,2364.7,0.924485]
[1727914800970,4.2281,2365.2,2364.6,9.24504]
[1727914801225,4.22815,2365.1,2364.6,5.0161]
[1727914801515,5.69827705,2365.1,2364.4,4.22927]
[1727914801824,7.22848,2365.0,2364.4,4.22927]
[1727914802111,0.7904,2365.4,2364.5,0.8199]
[1727914802318,0.7904,2365.4,2364.3,0.1173144]
[1727914802319,0.7904,2365.9,2365.5,4.22729]
[1727914802517,4.22629,2366.2,2365.4,4.22747]
[1727914802518,4.22595,2366.4,2365.8,0.8199]
[1727914802813,0.7904,2366.6,2365.8,0.8199]
[1727914802814,0.4946277,2366.5,2365.8,0.8199]
[1727914803018,4.22402,2367.5,2366.3,4.2259]
[1727914803019,4.22521,2366.8,2366.3,4.2259]
[1727914803329,5.03488,2366.2,2365.3,4.22768]
[1727914803493,4.22664,2366.0,2365.5,4.22743]
[1727914803818,5.538498,2366.2,2365.6,4.22724]
[1727914804121,4.99999,2366.6,2365.6,0.08454432]
[1727914804273,4.22522,2366.8,2366.1,5.02985]
[1727914804475,0.96616189,2366.8,2366.6,4.22546]
[1727914804689,4.22448,2367.2,2366.7,4.22529]
[1727914804904,4.22443,2367.2,2366.7,0.7871]
[1727914805205,0.7572,2367.3,2366.7,0.7871]
[1727914805389,4.646512,2367.4,2366.7,0.7871]
[1727914805728,4.22441,2367.2,2366.7,0.7871]
[1727914806230,4.22353,2367.7,2366.7,0.7871]
[1727914806231,4.22345,2367.8,2367.0,4.22465]
[1727914806393,4.22345,2367.8,2366.7,5.01236]
[1727914806394,8.44689,2367.8,2367.2,4.2243]
[1727914806592,4.22344,2367.8,2367.2,4.2243]
[1727914806824,4.645944,2367.7,2367.2,4.2243]
[1727914807027,4.645944,2367.7,2367.0,4.22465]
[1727914807231,0.422344,2367.7,2367.1,4.22457]
[1727914807392,4.22414,2367.4,2366.8,4.22494]
[1727914807601,8.44832,2367.4,2366.8,4.22494]
[1727914808096,4.22442,2367.2,2366.7,5.01237]
[1727914808303,1.144856,2367.2,2366.8,8.45011]
[1727914808609,8.02026,2367.5,2366.9,4.22476]
[1727914808820,3.0,2367.5,2366.9,4.22486]
[1727914809023,3.0,2367.7,2367.3,4.2242]
[1727914809222,3.0,2367.9,2367.3,5.017]
[1727914809552,0.722314,2367.8,2367.5,4.22385]
[1727914809842,0.722314,2367.8,2366.2,9.17242705]
[1727914810161,6.16483905,2368.1,2367.2,0.7966]
[1727914810162,4.22379,2367.6,2367.2,0.7966]
[1727914810298,6.16483905,2368.1,2366.6,5.02194]
[1727914810299,4.22425,2367.3,2366.6,5.02194]
[1727914810727,4.22476,2367.0,2366.2,5.02726]
[1727914810913,4.22476,2367.0,2366.2,9.2533]
[1727914810914,4.22511,2366.8,2366.2,9.2533]
[1727914811114,0.422476,2366.9,2366.4,4.22581]
[1727914811316,0.422476,2366.9,2366.4,4.22572]
[1727914811542,4.6898636,2366.8,2366.2,9.25328]
[1727914811709,4.6898636,2366.8,2366.3,4.22591]
[1727914812098,0.4647336,2366.8,2366.4,4.22572]
[1727914812432,3.783,2366.9,2366.4,4.22572]
[1727914812642,4.22548,2366.6,2366.2,0.8012]
[1727914813642,4.22548,2366.6,2366.0,4.22645]
[1727914813809,4.648228,2366.5,2366.0,4.22645]
[1727914814013,4.648228,2366.5,2365.9,8.2465]
[1727914814014,0.422548,2366.5,2365.9,8.2465]
[1727914814199,0.783,2366.9,2365.9,8.2465]
[1727914814400,3.0,2366.7,2366.2,4.22618]
[1727914814601,7.2254,2366.7,2366.1,4.22632]
[1727914814838,7.2254,2366.7,2366.1,8.45264]
[1727914815202,4.22492,2367.0,2366.5,4.22549]
[1727914815400,4.22492,2367.0,2366.4,4.22579]
[1727914815602,4.22451,2367.2,2366.6,4.22533]
[1727914815838,4.22449,2367.2,2366.6,4.22533]
[1727914816093,4.22497,2366.9,2366.3,4.22597]
[1727914816346,4.22497,2366.9,2366.2,4.22605]
[1727914816347,4.22534,2366.7,2366.2,4.22605]
[1727914816636,0.422534,2366.7,2366.3,4.22595]
[1727914816822,5.63547536,2367.2,2365.9,8.2465]
[1727914816823,5.63547536,2367.6,2365.9,8.2465]
[1727914817029,4.22524,2366.8,2366.3,4.22599]
[1727914817344,0.422524,2366.8,2366.5,4.22562]
[1727914817524,3.0,2367.0,2366.5,4.22562]
[1727914818049,3.0,2367.0,2365.9,8.2465]
[1727914818050,4.22495,2366.9,2365.9,8.2465]
[1727914818205,5.0224,2366.8,2366.1,4.22619]
[1727914818524,5.744895,2366.8,2366.1,4.22619]
[1727914818737,5.744895,2366.8,2366.1,8.45242]
[1727914818946,3.0,2367.0,2366.2,0.0845235]
[1727914819155,0.7909,2367.1,2366.5,8.45111]
[1727914819450,2.01487,2367.1,2366.6,4.2254]
[1727914820058,2.01487,2367.1,2366.3,4.22599]
[1727914820225,0.7909,2367.1,2366.7,4.22528]
[1727914820430,3.793,2367.4,2366.7,4.647808]
[1727914820752,3.0,2367.2,2366.8,4.22496]
[1727914820956,0.793,2367.4,2367.0,4.22466]
[1727914821165,0.793,2367.7,2367.0,4.22475]
[1727914821314,0.07355566,2367.9,2367.3,0.7582]
[1727914821513,1.215262,2368.1,2367.3,0.7582]
[1727914821514,5.438082,2368.1,2367.6,4.22368]
[1727914821755,5.01582,2368.1,2367.6,4.22368]
[1727914822268,5.01582,2368.1,2367.3,0.7582]
[1727914822269,4.22306,2368.0,2367.5,4.22386]
[1727914822450,4.22324,2367.9,2367.4,4.22391]